[Event "*** Titled Tuesday Blitz"]
[Site "Chess.com"]
[Date "2020.04.14"]
[Round "9"]
[White "Neimar24"]
[Black "ChessQueen"]
[Result "0-1"]
[WhiteElo "2572"]
[BlackElo "2804"]
[TimeControl "180+1"]
[EndTime "11:41:21 PDT"]
[Termination "ChessQueen won by resignation"]

1. e4 {[%clk 0:03:00.9]} 1... c5 {[%clk 0:03:00.1]} 2. Nf3 {[%clk 0:03:00.9]}
2... Nc6 {[%clk 0:03:00.5]} 3. Bb5 {[%clk 0:03:00.9]} 3... Nf6 {[%clk
0:03:00.2]} 4. Nc3 {[%clk 0:02:59.4]} 4... Nd4 {[%clk 0:03:00.1]} 5. Bc4 {[%clk
0:02:58.4]} 5... e6 {[%clk 0:02:40]} 6. O-O {[%clk 0:02:50.8]} 6... a6 {[%clk
0:02:27]} 7. e5 {[%clk 0:02:31.5]} 7... d5 {[%clk 0:02:26.7]} 8. Bd3 {[%clk
0:02:30.6]} 8... Nxf3+ {[%clk 0:02:21.4]} 9. Qxf3 {[%clk 0:02:29.7]} 9... Nd7
{[%clk 0:02:22.3]} 10. Re1 {[%clk 0:02:26.8]} 10... Be7 {[%clk 0:02:09.7]} 11.
Qh5 {[%clk 0:02:19.6]} 11... g6 {[%clk 0:02:07.6]} 12. Qh3 {[%clk 0:02:10.6]}
12... Qc7 {[%clk 0:02:03.1]} 13. Bxg6 {[%clk 0:01:53.7]} 13... fxg6 {[%clk
0:02:00.6]} 14. Qxe6 {[%clk 0:01:53.7]} 14... Nb6 {[%clk 0:01:54.3]} 15. Nxd5
{[%clk 0:01:50]} 15... Nxd5 {[%clk 0:01:54.3]} 16. Qxd5 {[%clk 0:01:50.1]} 16...
Bf5 {[%clk 0:01:53.9]} 17. d3 {[%clk 0:01:45.3]} 17... Rd8 {[%clk 0:01:48.3]}
18. Qb3 {[%clk 0:01:45]} 18... Qc6 {[%clk 0:01:46.8]} 19. Bf4 {[%clk 0:01:41.9]}
19... Be6 {[%clk 0:01:46.2]} 20. Qc3 {[%clk 0:01:41.5]} 20... O-O {[%clk
0:01:46.6]} 21. Bh6 {[%clk 0:01:38.6]} 21... Rf5 {[%clk 0:01:44]} 22. Rad1
{[%clk 0:01:34.3]} 22... Rd4 {[%clk 0:01:41.3]} 23. f3 {[%clk 0:01:25.2]} 23...
g5 {[%clk 0:01:34]} 24. Re4 {[%clk 0:01:18.3]} 24... Bd5 {[%clk 0:01:32.7]} 25.
Rxd4 {[%clk 0:01:17.3]} 25... cxd4 {[%clk 0:01:32.9]} 26. Qxc6 {[%clk
0:01:08.9]} 26... bxc6 {[%clk 0:01:33]} 27. Re1 {[%clk 0:01:02.1]} 27... Kf7
{[%clk 0:01:33.2]} 28. h4 {[%clk 0:00:57.4]} 28... gxh4 {[%clk 0:01:26.7]} 29.
c4 {[%clk 0:00:54.3]} 29... dxc3 {[%clk 0:01:25.3]} 30. bxc3 {[%clk 0:00:55.2]}
30... h3 {[%clk 0:01:18.3]} 31. c4 {[%clk 0:00:54.2]} 31... Be6 {[%clk
0:01:17.4]} 32. Rb1 {[%clk 0:00:50.5]} 32... Bc5+ {[%clk 0:01:12.1]} 33. Kh2
{[%clk 0:00:49.6]} 33... hxg2 {[%clk 0:01:10.6]} 34. Kxg2 {[%clk 0:00:50]} 34...
Rxe5 {[%clk 0:01:09.4]} 35. Rb7+ {[%clk 0:00:44.3]} 35... Kg6 {[%clk 0:01:08.8]}
36. Bf4 {[%clk 0:00:44.3]} 36... Re2+ {[%clk 0:01:08.7]} 37. Kg3 {[%clk
0:00:44.5]} 37... Bf2+ {[%clk 0:01:07.8]} 0-1

[Event "*** Titled Tuesday Blitz"]
[Site "Chess.com"]
[Date "2020.04.14"]
[Round "9"]
[White "benko_008"]
[Black "JustWatch000"]
[Result "1-0"]
[WhiteElo "2511"]
[BlackElo "2613"]
[TimeControl "180+1"]
[EndTime "11:41:21 PDT"]
[Termination "benko_008 won by resignation"]

1. Nf3 {[%clk 0:03:00.9]} 1... Nf6 {[%clk 0:02:57.4]} 2. g3 {[%clk 0:02:59.5]}
2... b5 {[%clk 0:02:57]} 3. Bg2 {[%clk 0:02:58.8]} 3... Bb7 {[%clk 0:02:57.1]}
4. O-O {[%clk 0:02:57.6]} 4... e6 {[%clk 0:02:57.3]} 5. b3 {[%clk 0:02:57.1]}
5... c5 {[%clk 0:02:56.3]} 6. c4 {[%clk 0:02:55.7]} 6... a6 {[%clk 0:02:55]} 7.
Bb2 {[%clk 0:02:55.1]} 7... Be7 {[%clk 0:02:52.7]} 8. e3 {[%clk 0:02:54.7]} 8...
O-O {[%clk 0:02:52.3]} 9. Nc3 {[%clk 0:02:52.7]} 9... b4 {[%clk 0:02:50.4]} 10.
Ne2 {[%clk 0:02:50.4]} 10... d5 {[%clk 0:02:47]} 11. Rc1 {[%clk 0:02:47.5]}
11... dxc4 {[%clk 0:02:46.8]} 12. Rxc4 {[%clk 0:02:44.5]} 12... Nbd7 {[%clk
0:02:47]} 13. Qa1 {[%clk 0:02:42.5]} 13... Nb6 {[%clk 0:02:40.5]} 14. Rcc1
{[%clk 0:02:41.1]} 14... a5 {[%clk 0:02:37.5]} 15. d4 {[%clk 0:02:39.3]} 15...
cxd4 {[%clk 0:02:36.1]} 16. Nexd4 {[%clk 0:02:38.8]} 16... a4 {[%clk 0:02:35.1]}
17. Rfd1 {[%clk 0:02:36.2]} 17... Qb8 {[%clk 0:02:26.8]} 18. bxa4 {[%clk
0:02:19.1]} 18... Rxa4 {[%clk 0:02:12.9]} 19. Nc6 {[%clk 0:02:10]} 19... Bxc6
{[%clk 0:02:08.5]} 20. Rxc6 {[%clk 0:02:09.7]} 20... Rc8 {[%clk 0:02:03.8]} 21.
Rxc8+ {[%clk 0:02:03]} 21... Qxc8 {[%clk 0:02:04.7]} 22. Qb1 {[%clk 0:02:02.6]}
22... Qc4 {[%clk 0:02:01.3]} 23. a3 {[%clk 0:01:46.8]} 23... b3 {[%clk
0:01:45.8]} 24. Ng5 {[%clk 0:01:42.7]} 24... h6 {[%clk 0:01:43]} 25. Bxf6 {[%clk
0:01:38.2]} 25... hxg5 {[%clk 0:01:35.3]} 26. Bxe7 {[%clk 0:01:35.7]} 26... Nd5
{[%clk 0:01:35.4]} 27. Bxd5 {[%clk 0:01:32.7]} 27... exd5 {[%clk 0:01:36.3]} 28.
Bb4 {[%clk 0:01:31.9]} 28... Ra6 {[%clk 0:01:31.1]} 29. Rc1 {[%clk 0:01:29.1]}
29... Qg4 {[%clk 0:01:29.6]} 30. Qxb3 {[%clk 0:01:26.3]} 30... Qf3 {[%clk
0:01:25.5]} 31. Qd1 {[%clk 0:01:22.8]} 31... Qf5 {[%clk 0:01:23.9]} 32. Rc5
{[%clk 0:01:16.9]} 32... Rf6 {[%clk 0:01:22.1]} 33. Be1 {[%clk 0:01:05.1]} 33...
Qh3 {[%clk 0:01:09.5]} 34. Qc2 {[%clk 0:00:55.3]} 34... g6 {[%clk 0:01:01.6]}
35. Rxd5 {[%clk 0:00:53]} 1-0

[Event "*** Titled Tuesday Blitz"]
[Site "Chess.com"]
[Date "2020.04.14"]
[Round "9"]
[White "chenxiaoyuer"]
[Black "avantage_ru"]
[Result "0-1"]
[WhiteElo "2127"]
[BlackElo "2551"]
[TimeControl "180+1"]
[EndTime "11:41:21 PDT"]
[Termination "avantage_ru won by checkmate"]

1. e4 {[%clk 0:03:00.9]} 1... d6 {[%clk 0:02:58.1]} 2. d4 {[%clk 0:03:00.5]}
2... Nf6 {[%clk 0:02:57.7]} 3. Nc3 {[%clk 0:03:00.2]} 3... c6 {[%clk 0:02:58]}
4. a4 {[%clk 0:02:59.2]} 4... e5 {[%clk 0:02:57.1]} 5. dxe5 {[%clk 0:02:56]}
5... dxe5 {[%clk 0:02:58]} 6. Qxd8+ {[%clk 0:02:54.2]} 6... Kxd8 {[%clk
0:02:58.9]} 7. f3 {[%clk 0:02:54.1]} 7... Bc5 {[%clk 0:02:55.4]} 8. Bg5 {[%clk
0:02:46.9]} 8... Be6 {[%clk 0:02:54.4]} 9. Nge2 {[%clk 0:02:36.6]} 9... Nd7
{[%clk 0:02:53.5]} 10. Nc1 {[%clk 0:02:36.1]} 10... h6 {[%clk 0:02:53]} 11. Bh4
{[%clk 0:02:34.5]} 11... Ke7 {[%clk 0:02:52.7]} 12. Bf2 {[%clk 0:02:33.8]} 12...
a5 {[%clk 0:02:48.6]} 13. Bxc5+ {[%clk 0:02:31.6]} 13... Nxc5 {[%clk 0:02:48.2]}
14. Nd3 {[%clk 0:02:31.5]} 14... Nfd7 {[%clk 0:02:43.9]} 15. b3 {[%clk
0:02:20.9]} 15... Rad8 {[%clk 0:02:42.6]} 16. Nd1 {[%clk 0:02:19.7]} 16... Nxd3+
{[%clk 0:02:41.8]} 17. Bxd3 {[%clk 0:02:19.2]} 17... Nc5 {[%clk 0:02:41.6]} 18.
Be2 {[%clk 0:02:18.8]} 18... g6 {[%clk 0:02:41.7]} 19. Nf2 {[%clk 0:02:17.8]}
19... f5 {[%clk 0:02:41.3]} 20. Rd1 {[%clk 0:02:11.6]} 20... f4 {[%clk 0:02:31]}
21. Nd3 {[%clk 0:02:08.3]} 21... Nxd3+ {[%clk 0:02:29.9]} 22. Rxd3 {[%clk
0:02:07.4]} 22... Rxd3 {[%clk 0:02:29.7]} 23. Bxd3 {[%clk 0:02:07.1]} 23... Kd6
{[%clk 0:02:29.6]} 24. Kd2 {[%clk 0:02:03.4]} 24... Kc5 {[%clk 0:02:29.6]} 25.
Kc3 {[%clk 0:01:59.3]} 25... g5 {[%clk 0:02:21.2]} 26. Be2 {[%clk 0:01:52.1]}
26... Rd8 {[%clk 0:02:19.7]} 27. Rd1 {[%clk 0:01:50.6]} 27... Rxd1 {[%clk
0:02:19.4]} 28. Bxd1 {[%clk 0:01:50.3]} 28... b5 {[%clk 0:02:18.3]} 29. Be2
{[%clk 0:01:41.2]} 29... h5 {[%clk 0:02:14.2]} 30. h3 {[%clk 0:01:30.1]} 30...
Bd7 {[%clk 0:02:13.1]} 31. Bd1 {[%clk 0:01:22.6]} 31... Kb6 {[%clk 0:02:09.4]}
32. Be2 {[%clk 0:01:20.9]} 32... Be8 {[%clk 0:02:08.2]} 33. Kb2 {[%clk
0:01:11.3]} 33... Bd7 {[%clk 0:01:58.7]} 34. c4 {[%clk 0:01:02.5]} 34... bxa4
{[%clk 0:01:57.7]} 35. bxa4 {[%clk 0:01:01.6]} 35... Kc5 {[%clk 0:01:53.5]} 36.
Kc3 {[%clk 0:01:01]} 36... Be6 {[%clk 0:01:52.7]} 37. Bd3 {[%clk 0:00:56.4]}
37... g4 {[%clk 0:01:52.7]} 38. h4 {[%clk 0:00:51.1]} 38... gxf3 {[%clk
0:01:51.2]} 39. gxf3 {[%clk 0:00:50.8]} 39... Bh3 {[%clk 0:01:51.1]} 40. Be2
{[%clk 0:00:46.3]} 40... Bg2 {[%clk 0:01:51]} 41. Bd1 {[%clk 0:00:41.3]} 41...
Bf1 {[%clk 0:01:50.3]} 42. Bb3 {[%clk 0:00:34]} 42... Be2 {[%clk 0:01:49.8]} 43.
Kc2 {[%clk 0:00:33.7]} 43... Bxc4 {[%clk 0:01:44.2]} 44. Bxc4 {[%clk 0:00:33.2]}
44... Kxc4 {[%clk 0:01:44.5]} 45. Kd2 {[%clk 0:00:34.1]} 45... Kb3 {[%clk
0:01:44]} 46. Ke2 {[%clk 0:00:34]} 46... c5 {[%clk 0:01:44.7]} 47. Kf2 {[%clk
0:00:34.1]} 47... Kxa4 {[%clk 0:01:44.3]} 48. Kg2 {[%clk 0:00:35]} 48... Kb4
{[%clk 0:01:45]} 49. Kh3 {[%clk 0:00:35]} 49... a4 {[%clk 0:01:45.9]} 50. Kh2
{[%clk 0:00:35.2]} 50... a3 {[%clk 0:01:46.8]} 51. Kh3 {[%clk 0:00:36.1]} 51...
a2 {[%clk 0:01:47.4]} 52. Kh2 {[%clk 0:00:37]} 52... a1=Q {[%clk 0:01:47.9]} 53.
Kh3 {[%clk 0:00:37.9]} 53... Qh1# {[%clk 0:01:47.1]} 0-1

[Event "*** Titled Tuesday Blitz"]
[Site "Chess.com"]
[Date "2020.04.14"]
[Round "9"]
[White "mbachez"]
[Black "abhidabhi"]
[Result "0-1"]
[WhiteElo "2533"]
[BlackElo "2756"]
[TimeControl "180+1"]
[EndTime "11:41:27 PDT"]
[Termination "abhidabhi won by resignation"]

1. e4 {[%clk 0:03:00.9]} 1... e5 {[%clk 0:02:58]} 2. Nf3 {[%clk 0:03:00.9]} 2...
Nc6 {[%clk 0:02:58.2]} 3. Bb5 {[%clk 0:03:00.2]} 3... a6 {[%clk 0:02:57.8]} 4.
Ba4 {[%clk 0:03:00.3]} 4... Nf6 {[%clk 0:02:57.5]} 5. d3 {[%clk 0:03:00.5]} 5...
Bc5 {[%clk 0:02:56.8]} 6. c3 {[%clk 0:02:57.9]} 6... b5 {[%clk 0:02:56.4]} 7.
Bb3 {[%clk 0:02:57.4]} 7... d6 {[%clk 0:02:56.9]} 8. h3 {[%clk 0:02:56.2]} 8...
h6 {[%clk 0:02:52.4]} 9. O-O {[%clk 0:02:56]} 9... Ba7 {[%clk 0:02:51.5]} 10. a4
{[%clk 0:02:55.5]} 10... g5 {[%clk 0:02:41.7]} 11. Be3 {[%clk 0:02:19.9]} 11...
g4 {[%clk 0:02:39.4]} 12. hxg4 {[%clk 0:02:18.9]} 12... Bxg4 {[%clk 0:02:38.5]}
13. axb5 {[%clk 0:02:15.6]} 13... axb5 {[%clk 0:02:37.4]} 14. Nbd2 {[%clk
0:02:07]} 14... Rg8 {[%clk 0:02:31.3]} 15. Bxa7 {[%clk 0:01:39.8]} 15... Rxa7
{[%clk 0:02:29.4]} 16. Rxa7 {[%clk 0:01:26.5]} 16... Nxa7 {[%clk 0:02:29.3]} 17.
Qa1 {[%clk 0:01:26.4]} 17... Bh3 {[%clk 0:02:05.7]} 18. g3 {[%clk 0:00:20.2]}
18... Bxf1 {[%clk 0:02:04.3]} 19. Kxf1 {[%clk 0:00:18.9]} 19... Qb8 {[%clk
0:01:57]} 20. Qa2 {[%clk 0:00:18.7]} 20... Rg7 {[%clk 0:01:56.1]} 21. Nh4 {[%clk
0:00:18.8]} 21... Qb6 {[%clk 0:01:49.7]} 22. Nf5 {[%clk 0:00:18.5]} 22... Rh7
{[%clk 0:01:49.9]} 23. Nf3 {[%clk 0:00:17.9]} 23... Nc6 {[%clk 0:01:28.9]} 24.
Qa8+ {[%clk 0:00:16.5]} 24... Nd8 {[%clk 0:01:28.3]} 25. Ba2 {[%clk 0:00:12.4]}
25... Ng4 {[%clk 0:01:21.8]} 26. d4 {[%clk 0:00:12.4]} 26... Qc6 {[%clk
0:01:21.5]} 27. Qxd8+ {[%clk 0:00:07.4]} 27... Kxd8 {[%clk 0:01:20.8]} 28. Bd5
{[%clk 0:00:05.9]} 0-1

[Event "*** Titled Tuesday Blitz"]
[Site "Chess.com"]
[Date "2020.04.14"]
[Round "9"]
[White "Mikhail_Golubev"]
[Black "Olkaa"]
[Result "0-1"]
[WhiteElo "2526"]
[BlackElo "2657"]
[TimeControl "180+1"]
[EndTime "11:41:27 PDT"]
[Termination "Olkaa won by resignation"]

1. e4 {[%clk 0:03:00.9]} 1... c5 {[%clk 0:02:59.5]} 2. Nf3 {[%clk 0:03:00.4]}
2... e6 {[%clk 0:02:59.6]} 3. d4 {[%clk 0:02:59.9]} 3... cxd4 {[%clk 0:03:00.5]}
4. Nxd4 {[%clk 0:03:00.1]} 4... Nc6 {[%clk 0:03:01.1]} 5. Nc3 {[%clk 0:02:59.1]}
5... Qc7 {[%clk 0:03:01.3]} 6. Be3 {[%clk 0:02:59]} 6... a6 {[%clk 0:03:01.6]}
7. a3 {[%clk 0:02:59.4]} 7... b5 {[%clk 0:03:00]} 8. Nxc6 {[%clk 0:02:58.2]}
8... Qxc6 {[%clk 0:03:00.9]} 9. Be2 {[%clk 0:02:49.7]} 9... Bb7 {[%clk
0:02:57.5]} 10. O-O {[%clk 0:02:46.7]} 10... Rc8 {[%clk 0:02:52.7]} 11. Bf3
{[%clk 0:02:39.2]} 11... Qc7 {[%clk 0:02:42.3]} 12. Re1 {[%clk 0:02:21.7]} 12...
Bd6 {[%clk 0:02:22.9]} 13. g3 {[%clk 0:02:14.9]} 13... Be5 {[%clk 0:02:11.1]}
14. Bg2 {[%clk 0:02:11.4]} 14... Nf6 {[%clk 0:02:10.3]} 15. f4 {[%clk 0:02:02]}
15... Bxc3 {[%clk 0:02:08.7]} 16. bxc3 {[%clk 0:02:01.9]} 16... Bxe4 {[%clk
0:01:57]} 17. Bxe4 {[%clk 0:01:51.8]} 17... Nxe4 {[%clk 0:01:56.4]} 18. Bd4
{[%clk 0:01:40.4]} 18... d5 {[%clk 0:01:41.1]} 19. Qh5 {[%clk 0:01:00.4]} 19...
O-O {[%clk 0:01:17.6]} 20. Bxg7 {[%clk 0:00:40.6]} 20... Kxg7 {[%clk 0:01:17.4]}
21. Rxe4 {[%clk 0:00:40.2]} 21... Qxc3 {[%clk 0:01:06]} 22. Re5 {[%clk
0:00:15.6]} 22... Qxa1+ {[%clk 0:01:05.5]} 23. Kg2 {[%clk 0:00:15.6]} 23...
Rxc2+ {[%clk 0:00:58.4]} 0-1

[Event "*** Titled Tuesday Blitz"]
[Site "Chess.com"]
[Date "2020.04.14"]
[Round "9"]
[White "Leo_C"]
[Black "manitodeplomo"]
[Result "0-1"]
[WhiteElo "2243"]
[BlackElo "2469"]
[TimeControl "180+1"]
[EndTime "11:41:30 PDT"]
[Termination "manitodeplomo won by checkmate"]

1. d4 {[%clk 0:03:00.9]} 1... c5 {[%clk 0:02:56.4]} 2. d5 {[%clk 0:03:00.7]}
2... g6 {[%clk 0:02:56.3]} 3. c4 {[%clk 0:03:00.8]} 3... Bg7 {[%clk 0:02:54.9]}
4. Nc3 {[%clk 0:03:01.1]} 4... f5 {[%clk 0:02:45.8]} 5. e4 {[%clk 0:02:58.8]}
5... Bxc3+ {[%clk 0:02:44.7]} 6. bxc3 {[%clk 0:02:58.6]} 6... fxe4 {[%clk
0:02:45.6]} 7. f3 {[%clk 0:02:59]} 7... e5 {[%clk 0:02:43.9]} 8. Nh3 {[%clk
0:02:58.3]} 8... d6 {[%clk 0:02:25.2]} 9. Bg5 {[%clk 0:02:54.4]} 9... Qa5 {[%clk
0:02:23.5]} 10. fxe4 {[%clk 0:02:38.5]} 10... Bxh3 {[%clk 0:02:21.1]} 11. gxh3
{[%clk 0:02:37.8]} 11... Nd7 {[%clk 0:02:18.6]} 12. Qb3 {[%clk 0:02:32.2]} 12...
Qc7 {[%clk 0:02:10.1]} 13. h4 {[%clk 0:02:28.5]} 13... h6 {[%clk 0:02:07.1]} 14.
Bd2 {[%clk 0:02:24.2]} 14... Ngf6 {[%clk 0:02:08]} 15. Qc2 {[%clk 0:02:19.4]}
15... O-O-O {[%clk 0:02:03.8]} 16. Bh3 {[%clk 0:02:18.7]} 16... Kb8 {[%clk
0:02:03.4]} 17. O-O-O {[%clk 0:02:17.7]} 17... Rdf8 {[%clk 0:02:02.2]} 18. Rdf1
{[%clk 0:02:16.5]} 18... Nb6 {[%clk 0:01:57.6]} 19. Qd3 {[%clk 0:02:09.6]} 19...
Qe7 {[%clk 0:01:51.7]} 20. Rf2 {[%clk 0:02:00.6]} 20... Nh5 {[%clk 0:01:44.2]}
21. Rxf8+ {[%clk 0:01:51.6]} 21... Rxf8 {[%clk 0:01:41.5]} 22. Bxh6 {[%clk
0:01:49.1]} 22... Nf4 {[%clk 0:01:28]} 23. Qf3 {[%clk 0:01:25.5]} 23... Rf7
{[%clk 0:01:25.8]} 24. Bg5 {[%clk 0:01:20.3]} 24... Qe8 {[%clk 0:01:24.8]} 25.
Rf1 {[%clk 0:01:06.7]} 25... Nxc4 {[%clk 0:01:20.5]} 26. Be6 {[%clk 0:01:03.2]}
26... Qb5 {[%clk 0:01:12.8]} 27. Rf2 {[%clk 0:00:33.5]} 27... Nd3+ {[%clk
0:01:09]} 28. Qxd3 {[%clk 0:00:33.1]} 28... Rxf2 {[%clk 0:01:08.7]} 29. Be7
{[%clk 0:00:20.9]} 29... Qb2+ {[%clk 0:01:07.2]} 30. Kd1 {[%clk 0:00:19.5]}
30... Qa1+ {[%clk 0:01:08.1]} 31. Qb1 {[%clk 0:00:18.2]} 31... Qxb1# {[%clk
0:01:06.9]} 0-1

[Event "*** Titled Tuesday Blitz"]
[Site "Chess.com"]
[Date "2020.04.14"]
[Round "9"]
[White "TengisChess"]
[Black "AshotParvanyan"]
[Result "1-0"]
[WhiteElo "2413"]
[BlackElo "2564"]
[TimeControl "180+1"]
[EndTime "11:41:34 PDT"]
[Termination "TengisChess won by resignation"]

1. Nf3 {[%clk 0:03:00.9]} 1... Nf6 {[%clk 0:02:59.5]} 2. g3 {[%clk 0:03:00.9]}
2... g6 {[%clk 0:02:59.5]} 3. Bg2 {[%clk 0:03:01.4]} 3... Bg7 {[%clk 0:03:00.1]}
4. O-O {[%clk 0:03:02]} 4... O-O {[%clk 0:03:00.7]} 5. c4 {[%clk 0:03:02.5]}
5... d6 {[%clk 0:03:00.8]} 6. Nc3 {[%clk 0:03:02.6]} 6... Nc6 {[%clk 0:03:00.9]}
7. d3 {[%clk 0:03:02.6]} 7... e5 {[%clk 0:03:00]} 8. Bg5 {[%clk 0:03:02.4]} 8...
h6 {[%clk 0:02:59]} 9. Bxf6 {[%clk 0:03:02.6]} 9... Bxf6 {[%clk 0:02:59.3]} 10.
Rb1 {[%clk 0:03:03.2]} 10... a5 {[%clk 0:02:57.9]} 11. a3 {[%clk 0:03:03.6]}
11... Be6 {[%clk 0:02:56.8]} 12. b4 {[%clk 0:03:03.7]} 12... axb4 {[%clk
0:02:57.1]} 13. axb4 {[%clk 0:03:04.6]} 13... Qd7 {[%clk 0:02:56]} 14. b5 {[%clk
0:03:05.1]} 14... Nd8 {[%clk 0:02:55.6]} 15. Nd5 {[%clk 0:03:04.3]} 15... Bg7
{[%clk 0:02:54.7]} 16. Nd2 {[%clk 0:03:04]} 16... Rc8 {[%clk 0:02:26]} 17. Qb3
{[%clk 0:02:54.9]} 17... Kh7 {[%clk 0:02:23]} 18. Ne4 {[%clk 0:02:53.5]} 18...
f5 {[%clk 0:02:22.2]} 19. Nec3 {[%clk 0:02:54]} 19... f4 {[%clk 0:02:20.4]} 20.
Ne4 {[%clk 0:02:52.4]} 20... Bh3 {[%clk 0:02:15.1]} 21. b6 {[%clk 0:02:45.7]}
21... Bxg2 {[%clk 0:02:13.2]} 22. Kxg2 {[%clk 0:02:43.5]} 22... c6 {[%clk
0:02:10.3]} 23. Nc7 {[%clk 0:02:43.6]} 23... g5 {[%clk 0:01:30.6]} 24. Qa3
{[%clk 0:02:35]} 24... Nf7 {[%clk 0:01:24.1]} 25. f3 {[%clk 0:02:32.3]} 25...
Rfd8 {[%clk 0:01:02.6]} 26. g4 {[%clk 0:02:30.7]} 26... d5 {[%clk 0:00:57.9]}
27. cxd5 {[%clk 0:02:23.2]} 27... cxd5 {[%clk 0:00:58.8]} 28. Nc5 {[%clk
0:02:20.9]} 28... Qe7 {[%clk 0:00:59]} 29. Qb4 {[%clk 0:02:14.3]} 29... Bf8
{[%clk 0:00:50.1]} 30. Rfc1 {[%clk 0:02:13]} 30... Rb8 {[%clk 0:00:31.9]} 31.
Qb2 {[%clk 0:02:06.7]} 31... Qf6 {[%clk 0:00:30]} 32. N7e6 {[%clk 0:02:05.1]}
32... Bxc5 {[%clk 0:00:12.8]} 33. Nxd8 {[%clk 0:02:03.7]} 33... Bd4 {[%clk
0:00:12.8]} 34. Qb5 {[%clk 0:01:46.2]} 34... Rxd8 {[%clk 0:00:12.1]} 35. Rc7
{[%clk 0:01:46.7]} 35... Rb8 {[%clk 0:00:09.1]} 36. Qxd5 {[%clk 0:01:45.2]}
36... Kg6 {[%clk 0:00:09.5]} 37. Rxb7 {[%clk 0:01:44.8]} 37... Rd8 {[%clk
0:00:08.2]} 38. Qe4+ {[%clk 0:01:44.3]} 38... Kg7 {[%clk 0:00:07.8]} 39. Rc7
{[%clk 0:01:41.4]} 39... Bxb6 {[%clk 0:00:07.1]} 40. Rc6 {[%clk 0:01:41.7]}
40... Rd6 {[%clk 0:00:07.2]} 41. Rbxb6 {[%clk 0:01:40.8]} 1-0

[Event "*** Titled Tuesday Blitz"]
[Site "Chess.com"]
[Date "2020.04.14"]
[Round "9"]
[White "DACF2905"]
[Black "talaicito"]
[Result "0-1"]
[WhiteElo "2147"]
[BlackElo "2284"]
[TimeControl "180+1"]
[EndTime "11:41:35 PDT"]
[Termination "talaicito won by resignation"]

1. d4 {[%clk 0:03:00.9]} 1... e6 {[%clk 0:02:59.5]} 2. c4 {[%clk 0:02:58.6]}
2... f5 {[%clk 0:02:59.8]} 3. Nf3 {[%clk 0:02:58.4]} 3... Nf6 {[%clk 0:02:59.5]}
4. g3 {[%clk 0:02:58.4]} 4... Be7 {[%clk 0:02:59.1]} 5. Bg2 {[%clk 0:02:58.6]}
5... O-O {[%clk 0:03:00]} 6. b3 {[%clk 0:02:58.7]} 6... d6 {[%clk 0:03:00.9]} 7.
Bb2 {[%clk 0:02:58.5]} 7... a5 {[%clk 0:03:01.1]} 8. Nc3 {[%clk 0:02:58.8]} 8...
Ne4 {[%clk 0:02:59.4]} 9. Nd2 {[%clk 0:02:57.5]} 9... Nxd2 {[%clk 0:02:53.3]}
10. Qxd2 {[%clk 0:02:57.4]} 10... e5 {[%clk 0:02:51.8]} 11. e3 {[%clk
0:02:55.8]} 11... Nc6 {[%clk 0:02:38.3]} 12. O-O {[%clk 0:02:55.4]} 12... f4
{[%clk 0:02:35.6]} 13. exf4 {[%clk 0:02:51.1]} 13... exf4 {[%clk 0:02:27.3]} 14.
Bd5+ {[%clk 0:02:39]} 14... Kh8 {[%clk 0:02:26.1]} 15. Rfe1 {[%clk 0:02:38.6]}
15... Bg5 {[%clk 0:01:48.5]} 16. Ne4 {[%clk 0:02:32.5]} 16... fxg3 {[%clk
0:01:43.4]} 17. Qxg5 {[%clk 0:02:05.5]} 17... gxf2+ {[%clk 0:01:41.8]} 18. Kg2
{[%clk 0:02:04.9]} 18... fxe1=N+ {[%clk 0:01:34.2]} 19. Rxe1 {[%clk 0:02:03]}
19... Qxg5+ {[%clk 0:01:26.3]} 20. Nxg5 {[%clk 0:02:02.2]} 20... h6 {[%clk
0:01:26.8]} 21. Ne6 {[%clk 0:01:41.9]} 21... Bxe6 {[%clk 0:01:21.8]} 22. Bxe6
{[%clk 0:01:41.9]} 22... a4 {[%clk 0:01:20.2]} 23. d5 {[%clk 0:01:41.9]} 23...
Ne7 {[%clk 0:01:06.7]} 24. b4 {[%clk 0:01:34.8]} 24... a3 {[%clk 0:01:05.2]} 25.
Bc3 {[%clk 0:01:33.8]} 25... Ng6 {[%clk 0:01:05]} 26. Kg3 {[%clk 0:01:32.3]}
26... Nf4 {[%clk 0:01:01.8]} 27. c5 {[%clk 0:01:26.3]} 27... dxc5 {[%clk
0:00:42.6]} 28. bxc5 {[%clk 0:01:25]} 28... Nd3 {[%clk 0:00:42.7]} 29. Rg1
{[%clk 0:01:20.8]} 29... Nxc5 {[%clk 0:00:38.4]} 30. Bb4 {[%clk 0:01:12.6]}
30... Nxe6 {[%clk 0:00:36.8]} 31. dxe6 {[%clk 0:01:12.9]} 31... Rf6 {[%clk
0:00:34.4]} 32. e7 {[%clk 0:01:12.8]} 32... Rg6+ {[%clk 0:00:30.2]} 33. Kf2
{[%clk 0:01:12.3]} 33... Rxg1 {[%clk 0:00:30.8]} 34. Kxg1 {[%clk 0:01:12.6]}
34... b6 {[%clk 0:00:31.4]} 35. Bxa3 {[%clk 0:01:09.7]} 35... c5 {[%clk
0:00:25.7]} 36. Bb2 {[%clk 0:01:08.7]} 36... Re8 {[%clk 0:00:25.8]} 0-1